fUST/lending_fUST_20250929
["ID","MTS","AMOUNT","RATE_DAILY","PERIOD"]
[388404286,1759157450983,-2846.66,0.00024262,2]
[388404287,1759157450994,-550.77,0.00024262,2]
[388404288,1759157451005,-887.91,0.00024262,2]
[388404289,1759157451014,-480.0,0.00024262,2]
[388404290,1759157451024,-480.0,0.00024262,2]
[388404291,1759157451034,-480.0,0.00024262,2]
[388404292,1759157451044,-480.0,0.00024262,2]
[388404293,1759157451054,-480.0,0.00024262,2]
[388404294,1759157451064,-746.36,0.00024262,2]
[388404295,1759157451073,-567.77,0.00024262,2]
[388404296,1759157451083,-480.0,0.00024262,2]
[388404297,1759157451093,-729.92,0.00024262,2]
[388404298,1759157451104,-480.0,0.00024262,2]
[388404299,1759157451114,-919.55,0.00024262,2]
[388404300,1759157451124,-339.50029271,0.00024262,2]
[388404301,1759157451133,-583.45,0.00024262,2]
[388404302,1759157451143,-768.4,0.00024262,2]
[388404303,1759157451154,-547.25,0.00024262,2]
[388404304,1759157451165,-849.75,0.00024262,2]
[388404305,1759157451175,-605.0,0.00024262,2]
[388404306,1759157451184,-480.0,0.00024262,2]
[388404307,1759157451194,-480.0,0.00024262,2]
[388404308,1759157451204,-480.0,0.00024262,2]
[388404309,1759157451214,-953.78,0.00024262,2]
[388404310,1759157451224,-480.0,0.00024262,2]
[388404311,1759157451233,-784.22,0.00024262,2]
[388404312,1759157451243,-480.0,0.00024262,2]
[388404313,1759157451252,-480.0,0.00024262,2]
[388404314,1759157451262,-480.0,0.00024262,2]
[388404315,1759157451272,-480.0,0.00024262,2]
[388404316,1759157451282,-480.0,0.00024262,2]
[388404317,1759157451291,-480.0,0.00024262,2]
[388404318,1759157451301,-480.0,0.00024262,2]
[388404319,1759157451310,-480.0,0.00024262,2]
[388404320,1759157451319,-480.0,0.00024262,2]
[388404321,1759157451329,-555.52,0.00024262,2]
[388404322,1759157451338,-543.41,0.00024262,2]
[388404323,1759157451348,-842.78,0.00024262,2]
[388404324,1759157451357,-732.38,0.00024262,2]
[388404325,1759157451367,-480.0,0.00024262,2]
[388404326,1759157451376,-864.4,0.00024262,2]
[388404327,1759157451386,-480.0,0.00024262,2]
[388404328,1759157451395,-480.0,0.00024262,2]
[388404329,1759157451406,-480.0,0.00024262,2]
[388404330,1759157451415,-480.0,0.00024262,2]
[388404331,1759157451429,-779.05,0.00024262,2]
[388404332,1759157451439,-1580.36,0.00024262,2]
[388404333,1759157451448,-480.0,0.00024262,2]
[388404334,1759157451458,-480.0,0.00024262,2]
[388404335,1759157451468,-480.0,0.00024262,2]
[388404336,1759157451478,-480.0,0.00024262,2]
[388404337,1759157451487,-480.0,0.00024262,2]
[388404338,1759157451497,-480.0,0.00024262,2]
[388404339,1759157451507,-480.0,0.00024262,2]
[388404340,1759157451516,-1899.88,0.00024262,2]
[388404341,1759157451526,-285.867645,0.00024262,7]
[388404342,1759157451535,-285.867645,0.00024262,7]
[388404343,1759157451545,-844.81,0.00024262,2]
[388404344,1759157451556,-954.8,0.00024262,2]
[388404345,1759157451566,-285.867645,0.00024262,7]
[388404346,1759157451575,-285.867645,0.00024262,7]
[388404347,1759157451585,-480.0,0.00024262,2]
[388404348,1759157451595,-387.84086418,0.00024262,2]
[388404349,1759157451606,-837.91,0.00024262,2]
[388404350,1759157451616,-219.5273721,0.00024262,2]
[388404351,1759157451626,-151.0,0.00024262,7]
[388404352,1759157451637,-480.0,0.00024262,2]
[388404353,1759157451646,-480.0,0.00024262,2]
[388404354,1759157451657,-480.0,0.00024262,2]
[388404355,1759157451668,-480.0,0.00024262,2]
[388404356,1759157451677,-860.7,0.00024262,2]
[388404357,1759157451687,-542.596106,0.00024262,7]
[388404358,1759157451696,-542.596106,0.00024262,7]
[388404359,1759157451706,-542.596106,0.00024262,7]
[388404360,1759157451716,-480.0,0.00024262,2]
[388404361,1759157451726,-530.15,0.00024262,2]
[388404362,1759157451735,-542.596106,0.00024262,7]
[388404363,1759157451744,-218.584003,0.00024262,7]
[388404364,1759157451755,-296.197878,0.00024262,7]
[388404365,1759157451764,-666.51,0.00024262,2]
[388404366,1759157451774,-296.197878,0.00024262,7]
[388404367,1759157451783,-505.9,0.00024262,2]
[388404368,1759157451793,-296.197878,0.00024262,7]
[388404369,1759157451803,-296.197878,0.00024262,7]
[388404370,1759157451813,-151.0,0.00024262,7]
[388404371,1759157451823,-480.0,0.00024262,2]
[388404372,1759157451832,-264.419603,0.00024262,7]
[388404373,1759157451841,-480.0,0.00024262,2]
[388404374,1759157451851,-151.0,0.00024262,7]
[388404375,1759157451861,-480.0,0.00024262,2]
[388404376,1759157451871,-151.0,0.00024262,7]
[388404377,1759157451880,-1639.81,0.00024262,2]
[388404378,1759157451890,-195.121314,0.00024262,7]
[388404379,1759157451899,-151.0,0.00024262,7]
[388404380,1759157451909,-480.0,0.00024262,2]
[388404381,1759157451919,-1104.12,0.00024262,2]
[388404382,1759157451928,-480.0,0.00024262,2]
[388404383,1759157451938,-480.0,0.00024262,2]
[388404384,1759157451948,-632.08,0.00024262,2]
[388404385,1759157451958,-2740.82,0.00024262,2]
[388404386,1759157451967,-586.199941,0.00024262,7]
[388404387,1759157451977,-480.0,0.00024262,2]
[388404388,1759157451986,-586.199941,0.00024262,7]
[388404389,1759157451996,-586.199941,0.00024262,7]
[388404390,1759157452005,-2918.94,0.00024262,2]
[388404391,1759157452027,-586.199941,0.00024262,7]
[388404392,1759157452037,-553.65,0.00024262,2]
[388404393,1759157452047,-480.0,0.00024262,2]
[388404394,1759157452057,-480.0,0.00024262,2]
[388404395,1759157452067,-1317.21,0.00024262,2]
[388404396,1759157452077,-480.0,0.00024262,2]
[388404397,1759157452087,-480.0,0.00024262,2]
[388404398,1759157452097,-480.0,0.00024262,2]
[388404399,1759157452107,-668.18,0.00024262,2]
[388404400,1759157452116,-644.33,0.00024262,2]
[388404401,1759157452126,-164.455933,0.00024262,7]
[388404402,1759157452135,-480.0,0.00024262,2]
[388404403,1759157452144,-164.455933,0.00024262,7]
[388404404,1759157452154,-164.455933,0.00024262,7]
[388404405,1759157452164,-164.455933,0.00024262,7]
[388404406,1759157452175,-4717.390683,0.00024262,7]
[388404407,1759157452185,-830.01,0.00024262,2]
[388404408,1759157452195,-4717.390683,0.00024262,7]
[388404409,1759157452204,-734.7,0.00024262,2]
[388404410,1759157452214,-151.0,0.00024262,7]
[388404411,1759157452224,-151.0,0.00024262,7]
[388404412,1759157452233,-4717.390683,0.00024262,7]
[388404413,1759157452243,-151.0,0.00024262,7]
[388404414,1759157452252,-153.369212,0.00024262,7]
[388404415,1759157452262,-4717.390683,0.00024262,7]
[388404416,1759157452272,-151.0,0.00024262,7]
[388404417,1759157452282,-480.0,0.00024262,2]
[388404418,1759157452292,-480.0,0.00024262,2]
[388404419,1759157452302,-151.0,0.00024262,7]
[388404420,1759157452312,-151.0,0.00024262,7]
[388404421,1759157452322,-765.58,0.00024262,2]
[388404422,1759157452331,-480.0,0.00024262,2]
[388404423,1759157452341,-151.0,0.00024262,7]
[388404424,1759157452351,-733.36,0.00024262,2]
[388404425,1759157452361,-151.0,0.00024262,7]
[388404426,1759157452371,-627.29,0.00024262,2]
[388404427,1759157452381,-151.0,0.00024262,7]
[388404428,1759157452391,-151.0,0.00024262,7]
[388404429,1759157452400,-10000.0,0.00024262,7]
[388404430,1759157452410,-151.0,0.00024262,7]
[388404431,1759157452422,-151.0,0.00024262,7]
[388404432,1759157452443,-10000.0,0.00024262,7]
[388404433,1759157452455,-10000.0,0.00024262,7]
[388404434,1759157452466,-151.0,0.00024262,7]
[388404435,1759157452476,-10000.0,0.00024262,7]
[388404436,1759157452486,-480.0,0.00024262,2]
[388404437,1759157452496,-480.0,0.00024262,2]
[388404438,1759157452507,-10000.0,0.00024262,7]
[388404439,1759157452517,-151.576217,0.00024262,7]
[388404440,1759157452527,-10000.0,0.00024262,7]
[388404441,1759157452536,-656.18,0.00024262,2]
[388404442,1759157452546,-477.47502938,0.00024262,2]
[388404443,1759157453367,-480.0,0.00023876,2]
[388404444,1759157453378,-166.66,0.00023887,2]
[388404445,1759157453389,-480.0,0.00023988,2]
[388404446,1759157453400,-166.66,0.00024161,2]
[388404447,1759157453410,-300.98301,0.00024245,7]
[388404448,1759157453422,-2.52497062,0.00024262,2]
[388404449,1759157453432,-1140.18,0.00024262,2]
[388404450,1759157453442,-480.0,0.00024262,2]
[388404451,1759157453452,-151.0,0.00024262,7]
[388404452,1759157453464,-480.0,0.00024262,2]
[388404453,1759157453474,-480.0,0.00024262,2]
[388404454,1759157453485,-1000.0,0.00024262,2]
[388404455,1759157453495,-151.0,0.00024262,7]
[388404456,1759157453505,-151.0,0.00024262,7]
[388404457,1759157453514,-151.0,0.00024262,2]
[388404458,1759157453527,-151.0,0.00024262,7]
[388404459,1759157453537,-236.92402,0.00024262,7]
[388404460,1759157453546,-480.0,0.00024262,2]
[388404461,1759157453556,-201.881643,0.00024262,7]
[388404462,1759157453566,-151.0,0.00024262,7]
[388404463,1759157453576,-236.92402,0.00024262,7]
[388404464,1759157453587,-151.0,0.00024262,7]
[388404465,1759157453597,-480.0,0.00024262,2]
[388404466,1759157453607,-236.92402,0.00024262,7]
[388404467,1759157453617,-586.56,0.00024262,2]
[388404468,1759157453627,-236.92402,0.00024262,7]
[388404469,1759157453637,-480.0,0.00024262,2]
[388404470,1759157453647,-640.438478,0.00024262,7]
[388404471,1759157453658,-480.63216321,0.00024262,2]
[388404472,1759157453668,-603.99269412,0.00024262,7]
[388404473,1759157455712,-480.0,0.00023875,2]
[388404474,1759157455722,-533.17689495,0.00023876,2]
[388404475,1759157455733,-480.0,0.00023886,2]
[388404476,1759157455743,-480.0,0.00023988,2]
[388404477,1759157455753,-480.0,0.00024149,2]
[388404478,1759157455763,-358.05221588,0.00024262,7]
[388404479,1759157455772,-640.438478,0.00024262,7]
[388404480,1759157455782,-480.0,0.00024262,2]
[388404481,1759157455791,-962.04491,0.00024262,7]
[388404482,1759157455801,-640.438478,0.00024262,7]
[388404483,1759157455811,-962.04491,0.00024262,7]
[388404484,1759157455821,-640.438478,0.00024262,7]
[388404485,1759157455832,-480.0,0.00024262,2]
[388404486,1759157455842,-480.0,0.00024262,2]
[388404487,1759157455853,-962.04491,0.00024262,7]
[388404488,1759157455863,-480.0,0.00024262,2]
[388404489,1759157455878,-798.76,0.00024262,2]
[388404490,1759157455888,-854.0,0.00024262,2]
[388404491,1759157455897,-151.0,0.00024262,7]
[388404492,1759157455908,-151.0,0.00024262,7]
[388404493,1759157455918,-151.0,0.00024262,7]
[388404494,1759157455928,-151.0,0.00024262,7]
[388404495,1759157455939,-151.0,0.00024262,7]
[388404496,1759157455949,-151.0,0.00024262,7]
[388404497,1759157455959,-151.0,0.00024262,7]
[388404498,1759157455969,-164.253382,0.00024262,7]
[388404499,1759157455979,-151.0,0.00024262,7]
[388404500,1759157455989,-164.253382,0.00024262,7]
[388404501,1759157455999,-271.90698,0.00024262,7]
[388404502,1759157456009,-366.75254885,0.00024262,2]
[388404503,1759157456065,500.0,0.00023873,2]
[388404504,1759157456563,500.0,0.00023873,2]
[388404505,1759157456623,500.0,0.00023873,2]
[388404506,1759157456744,500.0,0.00023873,2]
[388404507,1759157456833,500.0,0.00023873,2]
[388404508,1759157456964,500.0,0.00023873,2]
[388404509,1759157457101,1315.82240368,0.00023872,2]
[388404510,1759157457135,1315.82240368,0.00023872,2]
[388404511,1759157457239,1315.82240368,0.00023872,2]
[388404512,1759157457372,500.0,0.00023873,2]
[388404513,1759157457519,500.0,0.00023873,2]
[388404514,1759157457589,1315.82240368,0.00023872,2]
[388404515,1759157457673,500.0,0.00023873,2]
[388404516,1759157457736,236.72038528,0.00023873,2]
[388404517,1759157457764,263.27961472,0.00023873,2]
[388404518,1759157457909,500.0,0.00023873,2]
[388404519,1759157457966,500.0,0.00023873,2]
[388404520,1759157458059,500.0,0.00023873,2]
[388404521,1759157459103,5000.0,0.00023875,2]
[388404522,1759157459194,500.0,0.00023872,2]
[388404523,1759157459227,500.0,0.00023872,2]
[388404524,1759157459258,500.0,0.00023872,2]
[388404525,1759157459294,500.0,0.00023872,2]
[388404526,1759157459337,500.0,0.00023872,2]
[388404527,1759157459369,500.0,0.00023872,2]
[388404528,1759157459411,236.73038528,0.00023872,2]
[388404529,1759157460213,-263.26961472,0.00023872,2]
[388404530,1759157460250,-500.0,0.00023872,2]
[388404531,1759157460286,-500.0,0.00023872,2]
[388404532,1759157460323,-500.0,0.00023872,2]
[388404533,1759157460360,-500.0,0.00023872,2]
[388404534,1759157460396,-500.0,0.00023872,2]
[388404535,1759157460432,-361.34682886,0.00023872,2]
[388404536,1759157460466,-500.0,0.00023872,2]
[388404537,1759157460501,-500.0,0.00023872,2]
[388404538,1759157460536,-500.0,0.00023872,2]
[388404539,1759157460735,-250.77711284,0.00023872,2]
[388404540,1759157460944,-249.22288716,0.00023872,2]
[388404541,1759157460978,-500.0,0.00023872,2]
[388404542,1759157461012,-500.0,0.00023872,2]
[388404543,1759157461046,-500.0,0.00023872,2]
[388404544,1759157461079,-500.0,0.00023872,2]
[388404545,1759157461114,-500.0,0.00023872,2]
[388404546,1759157461148,-500.0,0.00023872,2]
[388404547,1759157461183,-500.0,0.00023872,2]
[388404548,1759157461216,-500.0,0.00023872,2]
[388404549,1759157461251,-500.0,0.00023872,2]
[388404550,1759157461287,-1.56422568,0.00023872,2]
[388404551,1759157461441,-498.43577432,0.00023872,2]
[388404552,1759157461477,-500.0,0.00023872,2]
[388404553,1759157461511,-500.0,0.00023872,2]
[388404554,1759157461545,-500.0,0.00023872,2]
[388404555,1759157461577,-500.0,0.00023872,2]
[388404556,1759157461614,-500.0,0.00023872,2]
[388404557,1759157461647,-480.0,0.00023875,2]
[388404558,1759157461683,-519.13845228,0.00023875,2]
[388404559,1759157461719,-480.0,0.00023875,2]
[388404560,1759157461756,-480.0,0.00023875,2]
[388404561,1759157461895,-600.48506062,0.00023872,2]
[388404562,1759157461931,-532.8572633,0.00023875,2]
[388404563,1759157461966,-480.0,0.00023875,2]
[388404564,1759157462000,-480.0,0.00023875,2]
[388404565,1759157462034,-701.63,0.00023875,2]
[388404566,1759157462069,-480.0,0.00023875,2]
[388404567,1759157462103,-480.0,0.00023876,2]
[388404568,1759157462137,-480.0,0.00023876,2]
[388404569,1759157462171,-480.0,0.00023876,2]
[388404570,1759157462210,-70.06535216,0.00023876,2]
[388404571,1759157462373,-429.93464784,0.00023876,2]
[388404572,1759157462409,-480.0,0.00023876,2]
[388404573,1759157462454,-480.0,0.00023886,2]
[388404574,1759157462489,-480.0,0.00023988,2]
[388404575,1759157462524,-480.0,0.00024149,2]
[388404576,1759157462558,-480.0,0.00024149,2]
[388404577,1759157462591,-480.0,0.00024149,2]
[388404578,1759157462624,-153.93,0.00024149,2]
[388404579,1759157462657,-701.63,0.00024149,2]
[388404580,1759157462691,-480.0,0.00024149,2]
[388404581,1759157462724,-229.02070432,0.0002415,2]
[388404582,1759157467927,-597.66753696,0.00023636,2]
[388404583,1759157470086,-4402.33246304,0.00023636,2]
[388404584,1759157470122,-25.90087768,0.00023872,2]
[388404585,1759157470315,-1143.54331856,0.00023872,2]
[388404586,1759157470351,-1169.44419624,0.00023872,2]
[388404587,1759157470387,-1169.44419624,0.00023872,2]
[388404588,1759157470423,-1169.44419624,0.00023872,2]
[388404589,1759157470596,-1169.44419624,0.00023872,2]
[388404590,1759157470632,-1169.44419624,0.00023872,2]
[388404591,1759157470667,-1169.44419624,0.00023872,2]
[388404592,1759157470704,-1169.44419624,0.00023872,2]
[388404593,1759157470735,-144.45643008,0.00023873,2]
[388404594,1759157470803,-355.54356992,0.00023873,2]
[388404595,1759157470826,-500.0,0.00023873,2]
[388404596,1759157470849,-480.0,0.00023875,2]
[388404597,1759157470872,-481.41985255,0.00023875,2]
[388404598,1759157470896,-2421.33,0.00023875,2]
[388404599,1759157470921,-480.0,0.00023876,2]
[388404600,1759157470945,-3047.57657753,0.00023886,2]
[388404601,1759157471014,-816.06342247,0.00023886,2]
[388404602,1759157471048,-525.99,0.00023886,2]
[388404603,1759157471081,-480.0,0.00023887,2]
[388404604,1759157471114,-480.0,0.00023887,2]
[388404605,1759157471147,-500.0,0.00023973,2]
[388404606,1759157471180,-272.11820887,0.00023973,2]
[388404607,1759157471212,-500.0,0.00023973,2]
[388404608,1759157471244,-500.0,0.00023973,2]
[388404609,1759157471277,-412.82600998,0.00023973,2]
[388404610,1759157471311,-482.26776614,0.00023988,2]
[388404611,1759157471497,-500.0,0.00023973,2]
[388404612,1759157471532,-3668.26193271,0.0002399,2]
[388404613,1759157471570,-480.0,0.00024149,2]
[388404614,1759157472445,-500.0,0.00023873,2]
[388404615,1759157472468,-500.0,0.00023973,2]
[388404616,1759157472642,-500.0,0.00023973,2]
[388404617,1759157472670,-480.0,0.00023988,2]
[388404618,1759157472694,-129.67,0.00024149,2]
[388404619,1759157475139,-480.0,0.00023876,2]
[388404620,1759157475162,-1494.38838289,0.00023887,2]
[388404621,1759157477150,-480.0,0.00023886,2]
[388404622,1759157479769,-480.0,0.00023876,2]
[388404623,1759157480060,-757.63,0.00023886,2]
[388404624,1759157480096,-534.36161711,0.00023887,2]
[388404625,1759157480134,-480.0,0.00023887,2]
[388404626,1759157480168,-500.24,0.00023988,2]
[388404627,1759157480204,-2291.66,0.00024149,2]
[388404628,1759157480240,-250.97929568,0.0002415,2]
[388404629,1759157480445,-518.20929383,0.0002415,2]
[388404630,1759157480484,-480.0,0.0002416,2]
[388404631,1759157480522,-3863.64,0.0002416,2]
[388404632,1759157480696,-525.99,0.0002416,2]
[388404633,1759157480732,-1237.63,0.0002416,2]
[388404634,1759157480767,-480.0,0.00024161,2]
[388404635,1759157480801,-480.0,0.00024161,2]
[388404636,1759157481010,-2028.75,0.00024161,2]
[388404637,1759157481047,-15.27,0.00024161,2]
[388404638,1759157481177,-464.73,0.00024161,2]
[388404639,1759157481211,-151.0,0.00024245,7]
[388404640,1759157481245,-151.0,0.00024245,7]
[388404641,1759157481277,-151.0,0.00024245,7]
[388404642,1759157481310,-151.0,0.00024245,7]
[388404643,1759157481343,-434.076885,0.00024245,7]
[388404644,1759157481375,-151.0,0.00024245,7]
[388404645,1759157481407,-434.076885,0.00024245,7]
[388404646,1759157481441,-151.0,0.00024245,7]
[388404647,1759157481473,-2748.12,0.00024252,3]
[388404648,1759157481648,-500.0,0.00024262,2]
[388404649,1759157481682,-113.24745115,0.00024262,2]
[388404650,1759157481715,-164.253382,0.00024262,7]
[388404651,1759157481748,-480.0,0.00024262,2]
[388404652,1759157481780,-151.0,0.00024262,7]
[388404653,1759157481813,-164.253382,0.00024262,7]
[388404654,1759157481845,-151.0,0.00024262,7]
[388404655,1759157481877,-151.0,0.00024262,7]
[388404656,1759157481910,-151.0,0.00024262,7]
[388404657,1759157481945,-151.0,0.00024262,7]
[388404658,1759157481978,-151.0,0.00024262,7]
[388404659,1759157482009,-153.871709,0.00024262,7]
[388404660,1759157482049,-151.0,0.00024262,7]
[388404661,1759157482093,-160.0,0.00024262,7]
[388404662,1759157482127,-151.0,0.00024262,7]
[388404663,1759157482161,-151.0,0.00024262,7]
[388404664,1759157482196,-155.793282,0.00024262,7]
[388404665,1759157482229,-155.793282,0.00024262,7]
[388404666,1759157482264,-480.0,0.00024262,2]
[388404667,1759157482299,-151.0,0.00024262,7]
[388404668,1759157482334,-155.793282,0.00024262,7]
[388404669,1759157482368,-151.0,0.00024262,7]
[388404670,1759157482402,-155.793282,0.00024262,7]
[388404671,1759157482440,-349.5218957,0.00024262,2]
[388404672,1759157482885,-151.0,0.00024245,7]
[388404673,1759157482906,-245.48,0.00024262,2]
[388404674,1759157484947,-480.0,0.00023637,2]
[388404675,1759157488708,-590.58,0.00023637,2]
[388404676,1759157490088,-3929.42,0.00023637,2]
[388404677,1759157490123,-500.0,0.00023872,2]
[388404678,1759157490157,-519.82951863,0.00023872,2]
[388404679,1759157490387,-1245.47722842,0.00023872,2]
[388404680,1759157490421,-1245.47722842,0.00023872,2]
[388404681,1759157490458,-1245.47722842,0.00023872,2]
[388404682,1759157490495,-1245.47722842,0.00023872,2]
[388404683,1759157490750,-1245.47722842,0.00023872,2]
[388404684,1759157490787,-1245.47722842,0.00023872,2]
[388404685,1759157490825,-1245.47722842,0.00023872,2]
[388404686,1759157490862,-1245.47722842,0.00023872,2]
[388404687,1759157490997,-1245.47722842,0.00023872,2]
[388404688,1759157491031,-480.0,0.00023875,2]
[388404689,1759157491065,-480.0,0.00023875,2]
[388404690,1759157491097,-1322.92,0.00023875,2]
[388404691,1759157491129,-664.28,0.00023875,2]
[388404692,1759157491161,-480.0,0.00023875,2]
[388404693,1759157491193,-174.65554316,0.00023876,2]
[388404694,1759157491284,-305.34445684,0.00023876,2]
[388404695,1759157491317,-480.0,0.00023876,2]
[388404696,1759157491350,-638.0,0.00023876,2]
[388404697,1759157491381,-2676.85,0.00023886,2]
[388404698,1759157491826,-480.0,0.00023886,2]
[388404700,1759157493573,-169.49,0.00023887,2]
[388404701,1759157495603,-300.0,0.00023875,2]
[388404702,1759157509435,5000.0,0.00023401,2]
[388404703,1759157511394,-190.70646133,0.00023633,2]
[388404704,1759157511427,-198.85065767,0.00023872,2]
[388404705,1759157511466,-180.0,0.00023875,2]
[388404706,1759157511500,-1472.92,0.00023875,2]
[388404707,1759157511533,-480.0,0.00023875,2]
[388404708,1759157511565,-480.0,0.00023875,2]
[388404709,1759157511598,-480.0,0.00023875,2]
[388404710,1759157511631,-851.97,0.00023875,2]
[388404711,1759157520148,-480.0,0.00023875,2]
[388404712,1759157520184,-1431.28,0.00023875,2]
[388404713,1759157520221,-680.66,0.00023875,2]
[388404714,1759157520255,-2084.66,0.00023886,2]
[388404715,1759157520288,-166.81,0.00023886,2]
[388404716,1759157524569,-245.48,0.000237,2]
[388404717,1759157530155,-899.99,0.00023636,2]
[388404718,1759157530189,-254.52,0.000237,2]
[388404719,1759157530227,-1880.85,0.00023875,2]
[388404720,1759157530262,-300.0,0.00023885,2]
[388404721,1759157530296,-313.19,0.00023886,2]
[388404722,1759157530331,-702.56,0.00023886,2]
[388404723,1759157533684,5000.0,0.00023401,2]
[388404724,1759157540217,-480.0,0.00023875,2]
[388404725,1759157540461,-778.19,0.00023875,2]
[388404726,1759157540499,-905.76,0.00023875,2]
[388404727,1759157540535,-480.0,0.00023876,2]
[388404728,1759157540571,-480.0,0.00023876,2]
[388404729,1759157540606,-1494.75,0.00023886,2]
[388404730,1759157556618,5000.0,0.00023485,2]
[388404731,1759157557749,-455.58756823,0.00023874,2]
[388404732,1759157564884,-158.45680292,0.00023874,2]
[388404733,1759157566384,-341.54319708,0.00023874,2]
[388404734,1759157568545,4706.0675386,0.00022887,2]
[388404735,1759157579461,293.9424614,0.00023485,2]
[388404736,1759157596382,-609.67,0.00023485,2]
[388404737,1759157612342,-500.0,0.00023485,2]
[388404738,1759157626771,-500.0,0.00023485,2]
[388404739,1759157633624,11440.7460166,0.00023064,2]
[388404741,1759157642260,-169.49,0.00023485,2]
[388404743,1759157660849,-300.0,0.00023485,2]
[388404745,1759157662785,-1494.38838289,0.00023485,2]
[388404746,1759157670801,-1132.50915571,0.00023485,2]
[388404748,1759157676015,5000.0,0.00023401,2]
[388404750,1759157692058,5000.0,0.00023401,2]
[388404751,1759157700206,5000.0,0.00023401,2]
[388404752,1759157716341,5000.0,0.00023401,2]
[388404753,1759157725034,5000.0,0.00023401,2]
[388404754,1759157741590,5000.0,0.00023401,2]
[388404755,1759157749676,5000.0,0.00023401,2]
[388404756,1759157765413,5000.0,0.00023401,2]
[388404757,1759157773983,5000.0,0.00023401,2]
[388404758,1759157789434,5000.0,0.00023401,2]
[388404759,1759157797833,5000.0,0.00023401,2]
[388404760,1759157813412,5000.0,0.00023401,2]
[388404761,1759157821579,5000.0,0.00023401,2]
[388404762,1759157839621,5000.0,0.00023401,2]
[388404763,1759157847582,1602.09622756,0.00023401,2]
[388404764,1759157863663,5000.0,0.00023401,2]
[388404765,1759157871000,-507.22262822,0.00023786,2]
[388404766,1759157871310,-1014.44525644,0.00023786,2]
[388404767,1759157871576,-2028.89051288,0.00023786,2]
[388404768,1759157871722,-3269.66224154,0.00023786,2]
[388404769,1759157871766,-2672.5667327,0.00023786,2]
[388404770,1759157871801,-160.95345401,0.000238,2]
[388404771,1759157871837,-441.44,0.00023864,10]
[388404772,1759157871874,-689.23,0.00023864,10]
[388404773,1759157871909,-228.29090485,0.00023869,2]
[388404774,1759157871944,-702.79736108,0.00023869,2]
[388404775,1759157872013,-209.45309472,0.00023869,2]
[388404776,1759157872047,-1200.0,0.00023872,2]
[388404777,1759157872080,-500.0,0.00023873,2]
[388404778,1759157872113,-500.0,0.00023873,2]
[388404779,1759157872147,-500.0,0.00023873,2]
[388404780,1759157872182,-500.0,0.00023873,2]
[388404781,1759157872217,-500.0,0.00023873,2]
[388404782,1759157872252,-500.0,0.00023873,2]
[388404783,1759157872286,-500.0,0.00023873,2]
[388404784,1759157872381,1476.9423816,0.00022872,7]
[388404785,1759157872645,-209.45309472,0.00023774,2]
[388404786,1759157872665,-181.10381056,0.00023774,2]
[388404787,1759157880812,-79.8738117,0.00023774,2]
[388404788,1759157880847,-500.0,0.00023873,2]
[388404789,1759157880881,-500.0,0.00023873,2]
[388404790,1759157880913,-500.0,0.00023873,2]
[388404791,1759157880946,-500.0,0.00023873,2]